bitfinex-derivatives/quotes_BTCF0:USTF0_20250315
["timestamp","ask_amount","ask_price","bid_price","bid_amount"]
[1742064476277,0.11757804,84219.0,84218.0,0.858737]
[1742064476585,0.23631364,84219.0,84218.0,0.878737]
[1742064476778,0.11891364,84219.0,84218.0,0.878737]
[1742064477170,0.11891364,84219.0,84218.0,0.358737]
[1742064477587,0.11891364,84219.0,84218.0,0.420437]
[1742064478086,0.11891364,84219.0,84218.0,0.960437]
[1742064478281,0.11891364,84219.0,84218.0,0.420437]
[1742064478985,0.11891364,84219.0,84218.0,0.450637]
[1742064479191,0.12091364,84219.0,84218.0,0.3319]
[1742064479487,0.12091364,84219.0,84218.0,0.450637]
[1742064479688,0.18611364,84219.0,84218.0,0.450637]
[1742064479882,0.18811364,84219.0,84218.0,0.450637]
[1742064482479,0.18811364,84219.0,84218.0,0.3319]
[1742064483275,0.18811364,84219.0,84218.0,0.3004]
[1742064483488,0.18811364,84219.0,84218.0,0.24]
[1742064486177,0.0593692,84218.0,84215.0,0.0593705]
[1742064486376,0.1187384,84217.0,84216.0,0.063]
[1742064486585,0.1831384,84217.0,84216.0,0.323]
[1742064487585,0.1851384,84217.0,84216.0,0.323]
[1742064487774,0.1187469,84211.0,84210.0,4e-05]
[1742064487980,0.2358269,84211.0,84210.0,0.26004]
[1742064488283,0.2358269,84211.0,84210.0,0.28004]
[1742064489087,0.2358269,84211.0,84210.0,0.28]
[1742064489386,0.24768307,84211.0,84210.0,0.28]
[1742064489580,0.27848307,84211.0,84210.0,0.3116]
[1742064494580,0.118754,84206.0,84205.0,0.00182128]
[1742064494783,0.118754,84206.0,84205.0,0.25182128]
[1742064495797,0.150854,84206.0,84205.0,0.25182128]
[1742064495990,0.150854,84206.0,84205.0,0.25178128]
[1742064496190,0.150854,84206.0,84205.0,0.28548128]
[1742064496712,0.150854,84206.0,84205.0,0.64423668]
[1742064496892,0.150854,84206.0,84205.0,0.64523668]
[1742064497202,0.235434,84206.0,84205.0,0.64523668]
[1742064497396,0.235434,84206.0,84205.0,0.67663668]
[1742064497600,0.235594,84206.0,84205.0,0.67663668]
[1742064497916,0.118754,84206.0,84205.0,0.67663668]
[1742064498198,0.235594,84206.0,84205.0,0.67663668]
[1742064498788,0.266994,84206.0,84205.0,0.67663668]
[1742064498989,0.299554,84206.0,84205.0,0.67663668]
[1742064499705,0.299554,84206.0,84205.0,0.31788128]
[1742064500008,0.299554,84206.0,84205.0,0.57788128]
[1742064500298,0.235554,84206.0,84205.0,0.65663668]
[1742064501707,0.235554,84206.0,84205.0,0.6548554]
[1742064502588,0.298754,84206.0,84205.0,0.6548554]
[1742064502887,0.298754,84206.0,84205.0,0.5361]
[1742064503497,0.181954,84206.0,84205.0,0.5361]
[1742064503694,0.298674,84206.0,84205.0,0.3161]
[1742064503888,0.181954,84206.0,84205.0,0.3161]
[1742064504089,0.298674,84206.0,84205.0,0.3161]
[1742064510807,0.298634,84206.0,84205.0,0.3161]
[1742064512608,0.495934,84206.0,84205.0,0.3161]
[1742064512903,0.298634,84206.0,84205.0,0.0661]
[1742064513105,0.298634,84206.0,84205.0,0.3361]
[1742064513308,0.181954,84206.0,84205.0,0.3361]
[1742064513517,0.298634,84206.0,84205.0,0.3361]
[1742064514002,0.181954,84206.0,84205.0,0.3361]
[1742064514309,0.298634,84206.0,84205.0,0.3361]
[1742064517410,0.181954,84206.0,84205.0,0.3361]
[1742064517708,0.298634,84206.0,84205.0,0.3361]
[1742064518210,0.181954,84206.0,84205.0,0.3361]
[1742064518405,0.298634,84206.0,84205.0,0.3361]
[1742064519703,0.181954,84206.0,84205.0,0.3361]
[1742064520010,0.298634,84206.0,84205.0,0.3361]
[1742064521899,0.181954,84206.0,84205.0,0.3361]
[1742064522110,0.298634,84206.0,84205.0,0.3361]
[1742064523410,0.181954,84206.0,84205.0,0.3361]
[1742064523711,0.298634,84206.0,84205.0,0.3361]
[1742064524603,0.298634,84206.0,84205.0,0.3047]
[1742064525204,0.181954,84206.0,84205.0,0.0347]
[1742064525412,0.298634,84206.0,84205.0,0.0347]
[1742064525813,0.298634,84206.0,84205.0,0.002]
[1742064526601,0.298634,84206.0,84205.0,0.0323]
[1742064527411,0.300634,84206.0,84205.0,0.0303]
[1742064527621,0.300634,84206.0,84205.0,0.2803]
[1742064531317,0.300634,84206.0,84205.0,0.0303]
[1742064532117,0.300634,84206.0,84204.0,0.03114]
[1742064532118,0.1187554,84205.0,84204.0,0.03114]
[1742064532314,0.3387554,84205.0,84204.0,4e-05]
[1742064532510,0.4006554,84205.0,84204.0,4e-05]
[1742064532709,0.1187652,84198.0,84197.0,0.0316]
[1742064532918,0.4795652,84198.0,84197.0,0.0316]
[1742064533522,0.5414652,84198.0,84197.0,0.0316]
[1742064533715,0.5414652,84198.0,84197.0,0.0619]
[1742064534316,0.55321623,84198.0,84197.0,0.0619]
[1742064536716,0.55321623,84198.0,84197.0,0.2919]
[1742064537007,0.55321623,84198.0,84197.0,0.3219]
[1742064537825,0.55721623,84198.0,84197.0,0.3219]
[1742064541520,0.55721623,84198.0,84197.0,0.0619]
[1742064541718,0.55721623,84198.0,84197.0,0.3119]
[1742064548629,0.4835652,84198.0,84197.0,0.3119]
[1742064548929,0.6002452,84198.0,84197.0,0.3119]
[1742064549123,0.6002452,84198.0,84197.0,0.4609667]
[1742064549627,0.6661452,84198.0,84197.0,0.4609667]
[1742064550219,0.6661452,84198.0,84197.0,0.35399307]
[1742064550418,0.6661452,84198.0,84197.0,0.3422]
[1742064558523,0.6661452,84198.0,84197.0,0.0619]
[1742064558728,0.6661452,84198.0,84197.0,0.3419]
[1742064559943,0.6661452,84198.0,84197.0,0.0619]
[1742064560847,0.6661452,84198.0,84197.0,0.3419]
[1742064561042,0.6661452,84198.0,84197.0,0.0619]
[1742064561246,0.6661452,84198.0,84197.0,0.3219]
[1742064565554,0.6661452,84198.0,84197.0,0.0619]
[1742064565844,0.6661452,84198.0,84197.0,0.2919]
[1742064566149,0.6661452,84198.0,84197.0,0.3219]
[1742064568135,0.5494652,84198.0,84197.0,0.4406667]
[1742064568343,0.48148,84198.0,84197.0,0.9506667]
[1742064568547,0.6002452,84198.0,84197.0,0.6906667]
[1742064569937,0.6002452,84198.0,84197.0,0.4406667]
[1742064570340,0.6002452,84198.0,84197.0,0.6906667]
[1742064570642,0.6002452,84198.0,84197.0,0.7106667]
[1742064570946,0.6002452,84198.0,84197.0,0.4406667]
[1742064571148,0.6002452,84198.0,84197.0,0.9806667]
[1742064571655,0.2394452,84198.0,84197.0,0.9806667]
[1742064571842,0.2394452,84198.0,84197.0,0.4406667]
[1742064572043,0.2394452,84198.0,84197.0,0.4712667]
[1742064572551,0.2394452,84198.0,84197.0,0.48323398]
[1742064573244,0.2394452,84198.0,84197.0,0.4712667]
[1742064573739,0.3023452,84198.0,84197.0,0.4712667]
[1742064574754,0.1539652,84198.0,84197.0,0.4712667]
[1742064575061,0.1227652,84198.0,84197.0,0.7012667]
[1742064575753,0.1227652,84198.0,84197.0,0.7412667]
[1742064575955,0.1227652,84198.0,84197.0,0.6912667]
[1742064576155,0.1227652,84198.0,84197.0,0.4712667]
[1742064576452,0.1227652,84198.0,84197.0,0.7212667]
[1742064577552,0.1227652,84198.0,84197.0,0.9912667]
[1742064577745,0.1227652,84198.0,84197.0,1.0412667]
[1742064581245,0.1227652,84198.0,84197.0,0.4712667]
[1742064581845,0.1868652,84198.0,84197.0,0.4712667]
[1742064582946,0.1868652,84198.0,84197.0,0.7412667]
[1742064583751,0.1227652,84198.0,84197.0,0.7412667]
[1742064584560,0.004,84198.0,84197.0,0.5012667]
[1742064584854,0.1227652,84198.0,84197.0,0.7112667]
[1742064585560,0.1546652,84198.0,84197.0,0.7112667]
[1742064585763,0.1546652,84198.0,84197.0,0.4712667]
[1742064586362,0.1546652,84198.0,84197.0,0.7012667]
[1742064587559,0.1546652,84198.0,84197.0,0.6912667]
[1742064589764,0.1546652,84198.0,84197.0,0.4912667]
[1742064590170,0.1546652,84198.0,84197.0,0.7312667]
[1742064591867,0.1546652,84198.0,84197.0,0.9912667]
[1742064592461,0.1546652,84198.0,84197.0,0.9712667]
[1742064592861,0.1546652,84198.0,84197.0,0.9612667]
[1742064597556,0.1546652,84198.0,84197.0,0.9712667]
[1742064600874,0.1546652,84198.0,84197.0,0.4712667]
[1742064601861,0.0359,84198.0,84197.0,0.9712667]
[1742064602061,0.0359,84198.0,84197.0,0.9812667]
[1742064602062,0.1546652,84198.0,84197.0,0.9812667]
[1742064602463,0.0359,84198.0,84197.0,0.9812667]
[1742064603175,0.0677,84198.0,84197.0,0.9812667]
[1742064603875,0.0677,84198.0,84197.0,0.9712667]
[1742064604777,0.0677,84198.0,84197.0,1.0012667]
[1742064606069,0.0677,84198.0,84197.0,0.9312667]
[1742064606277,0.0677,84198.0,84197.0,0.7312667]
[1742064606469,0.0677,84198.0,84197.0,1.0112667]
[1742064606778,0.1187536,84207.0,84206.0,0.118754]
[1742064607080,0.2983936,84207.0,84206.0,0.848754]
[1742064607465,0.1817536,84207.0,84206.0,0.848754]
[1742064607775,0.2983936,84207.0,84206.0,0.848754]
[1742064608377,0.1817536,84207.0,84206.0,0.848754]
[1742064608576,0.2983936,84207.0,84206.0,0.848754]
[1742064608977,0.3023936,84207.0,84206.0,0.848754]
[1742064609174,0.3033936,84207.0,84206.0,0.848754]
[1742064609378,0.3033936,84207.0,84206.0,0.368754]
[1742064609677,0.1867536,84207.0,84206.0,0.868754]
[1742064609877,0.1867536,84207.0,84206.0,0.368754]
[1742064610672,0.3033936,84207.0,84206.0,0.368754]
[1742064619081,0.3033936,84207.0,84206.0,0.399154]
[1742064622082,0.3033936,84207.0,84206.0,0.400154]
[1742064622083,0.2993936,84207.0,84206.0,0.400154]
[1742064624188,0.2983936,84207.0,84206.0,0.401154]
[1742064624885,0.1817536,84207.0,84206.0,0.400154]
[1742064625092,0.063,84207.0,84206.0,0.849154]
[1742064625303,0.00899288,84213.0,84212.0,0.1187455]
[1742064625492,0.00899288,84213.0,84212.0,0.9087455]
[1742064625987,0.033,84218.0,84217.0,0.1187384]
[1742064626297,0.0659,84221.0,84218.0,0.118737]
[1742064626485,0.0659,84221.0,84218.0,0.994037]
[1742064627196,0.00178186,84224.0,84223.0,0.11873]
[1742064627383,0.06568186,84224.0,84223.0,0.400446]
[1742064627784,0.00178186,84224.0,84223.0,0.410446]
[1742064627983,0.00178186,84224.0,84223.0,0.724746]
[1742064628391,0.001,84224.0,84223.0,0.724746]
[1742064629099,0.1497201,84230.0,84229.0,0.1187215]
[1742064629392,0.031,84230.0,84229.0,0.3987215]
[1742064629601,0.3608,84231.0,84230.0,0.1187201]
[1742064629890,0.3608,84231.0,84230.0,0.4226201]
[1742064630100,0.3608,84231.0,84230.0,0.4326201]
[1742064630596,0.3608,84231.0,84230.0,0.9526201]
[1742064631297,0.00017815,84232.0,84231.0,0.1187187]
[1742064631493,0.00017815,84232.0,84231.0,1.0332187]
[1742064633404,0.1166,84243.0,84242.0,0.1187032]
[1742064633597,0.1476,84243.0,84242.0,0.3987032]
[1742064634199,0.1476,84243.0,84242.0,0.4294032]
[1742064634392,0.031,84243.0,84242.0,0.4294032]
[1742064634804,0.1797018,84243.0,84242.0,0.4604032]
[1742064635311,0.1837018,84243.0,84242.0,0.4604032]
[1742064635996,0.1837018,84243.0,84242.0,0.47209232]
[1742064644899,0.065,84243.0,84242.0,0.47209232]
[1742064645293,0.1837018,84243.0,84242.0,0.47209232]
[1742064646205,0.065,84243.0,84242.0,0.48209232]
[1742064646398,0.004,84243.0,84242.0,0.48209232]
[1742064646909,0.1227018,84243.0,84242.0,0.47209232]
[1742064647702,0.1865018,84243.0,84242.0,0.47209232]
[1742064651410,0.1865018,84243.0,84242.0,0.41039232]
[1742064653515,0.6638618,84243.0,84242.0,0.28]
[1742064654709,0.6638618,84243.0,84242.0,0.3987032]
[1742064654908,0.6638618,84243.0,84242.0,0.4107121]
[1742064655205,0.6638618,84243.0,84242.0,0.3987032]
[1742064655810,0.6638618,84243.0,84242.0,0.4609032]
[1742064657716,0.5473018,84243.0,84242.0,0.4609032]
[1742064658304,0.5473018,84243.0,84242.0,0.3987032]
[1742064658821,0.5473018,84243.0,84242.0,0.28]
[1742064660413,0.5473018,84243.0,84242.0,0.3987032]
[1742064661502,0.5473018,84243.0,84242.0,0.28]
[1742064662109,0.1187074,84239.0,84238.0,0.2691164]
[1742064662311,0.1187074,84239.0,84238.0,0.3591164]
[1742064662903,0.1799074,84239.0,84238.0,0.3591164]
[1742064663112,0.1799074,84239.0,84238.0,0.2404082]
[1742064663712,0.1729074,84239.0,84238.0,0.2404082]
[1742064667121,0.1709074,84239.0,84238.0,0.2404082]
[1742064671024,0.1709074,84239.0,84238.0,0.2734082]
[1742064671824,0.1097074,84239.0,84238.0,0.2734082]
[1742064672614,0.1728074,84239.0,84238.0,0.2734082]
[1742064673119,0.1728074,84239.0,84238.0,0.2404088]
[1742064680026,0.1097074,84239.0,84238.0,0.2404088]
[1742064682029,0.1207074,84239.0,84238.0,0.2404088]
[1742064682721,0.002,84239.0,84238.0,0.2404088]
[1742064683125,0.002,84239.0,84238.0,0.2704088]
[1742064683930,0.12047594,84248.0,84247.0,0.1186962]
[1742064684121,0.12047594,84248.0,84247.0,0.3486962]
[1742064684527,0.00178114,84248.0,84247.0,0.4103962]
[1742064685530,0.00178114,84248.0,84247.0,0.4403962]
[1742064685922,0.00378114,84248.0,84247.0,0.4403962]
[1742064686317,0.002,84248.0,84247.0,0.4403962]
[1742064686521,0.00017815,84251.0,84250.0,0.1186919]
[1742064686727,0.00017815,84251.0,84250.0,0.3886919]
[1742064687242,0.00017815,84251.0,84250.0,0.4512919]
[1742064688036,0.00017815,84251.0,84250.0,0.4312919]
[1742064688528,0.11886865,84251.0,84250.0,0.4312919]
[1742064688927,0.11886865,84251.0,84250.0,0.4322919]
[1742064689320,0.00017815,84251.0,84250.0,0.4632919]
[1742064689726,0.11886865,84251.0,84250.0,0.4332919]
[1742064690526,0.17996865,84251.0,84250.0,0.4332919]
[1742064690837,0.17996865,84251.0,84250.0,0.8932919]
[1742064691024,0.11886865,84251.0,84250.0,0.4332919]
[1742064691629,0.14966865,84251.0,84250.0,0.4332919]
[1742064691934,0.18066865,84251.0,84250.0,0.4332919]
[1742064692157,0.18066865,84251.0,84250.0,0.4322919]
[1742064692334,0.18066865,84251.0,84250.0,0.4332919]
[1742064692931,0.18066865,84251.0,84250.0,0.4322919]
[1742064693127,0.18066865,84251.0,84250.0,0.4332919]
[1742064694044,0.06197815,84251.0,84250.0,0.4532919]
[1742064694337,0.00017815,84251.0,84250.0,0.4532919]
[1742064694729,0.00017815,84251.0,84250.0,0.4632919]
[1742064694933,0.00017815,84251.0,84250.0,0.7032919]
[1742064695343,0.00017815,84251.0,84250.0,0.7022919]
[1742064695528,0.00017815,84251.0,84250.0,0.7032919]
[1742064697040,0.00017815,84251.0,84250.0,0.6832919]
[1742064697246,0.03097815,84251.0,84250.0,0.6832919]
[1742064697630,0.18216865,84251.0,84250.0,0.6832919]
[1742064699537,0.18216865,84251.0,84250.0,0.6822919]
[1742064700228,0.06347815,84251.0,84250.0,0.7122919]
[1742064700434,0.18216865,84251.0,84250.0,0.6822919]
[1742064700625,0.18216865,84251.0,84250.0,0.6832919]
[1742064701943,0.18216865,84251.0,84250.0,0.7132919]
[1742064702143,0.18216865,84251.0,84250.0,0.6832919]
[1742064703047,0.18216865,84251.0,84250.0,0.6822919]
[1742064703238,0.18216865,84251.0,84250.0,0.6832919]
[1742064703932,0.18216865,84251.0,84250.0,0.4422919]
[1742064704132,0.18216865,84251.0,84250.0,0.4432919]
[1742064705937,0.18216865,84251.0,84250.0,0.4422919]
[1742064706338,0.18216865,84251.0,84250.0,0.4412919]
[1742064707541,0.18216865,84251.0,84250.0,0.4422919]
[1742064708753,0.18216865,84251.0,84250.0,0.8030919]
[1742064710342,0.18216865,84251.0,84250.0,0.8020919]
[1742064710545,0.18216865,84251.0,84250.0,0.8030919]
[1742064711942,0.06347815,84251.0,84250.0,0.8030919]
[1742064712149,0.18216865,84251.0,84250.0,0.8030919]
[1742064712342,0.06347815,84251.0,84250.0,0.8030919]
[1742064713542,0.06347815,84251.0,84250.0,0.8040919]
[1742064714163,0.18216865,84251.0,84250.0,0.8040919]
[1742064714944,0.06347815,84251.0,84250.0,0.8040919]
[1742064715562,0.18216865,84251.0,84250.0,0.8040919]
[1742064717053,0.06347815,84251.0,84250.0,0.8040919]
[1742064717549,0.18216865,84251.0,84250.0,0.8040919]
[1742064720946,0.06347815,84251.0,84250.0,0.8340919]
[1742064721149,0.06347815,84251.0,84250.0,0.8040919]
[1742064721347,0.18216865,84251.0,84250.0,0.8040919]
[1742064721757,0.18216865,84251.0,84250.0,0.8030919]
[1742064721956,0.18216865,84251.0,84250.0,0.8040919]
[1742064722551,0.18216865,84251.0,84250.0,0.8030919]
[1742064722758,0.18216865,84251.0,84250.0,0.8040919]
[1742064723653,0.06347815,84251.0,84250.0,0.8240919]
[1742064723850,0.06347815,84251.0,84250.0,0.8040919]
[1742064724063,0.06347815,84251.0,84250.0,0.8240919]
[1742064724762,0.06347815,84251.0,84250.0,0.8340919]
[1742064725258,0.06347815,84251.0,84250.0,0.8140919]
[1742064725450,0.18216865,84251.0,84250.0,0.8140919]
[1742064726047,0.18216865,84251.0,84250.0,0.8130919]
[1742064726251,0.18216865,84251.0,84250.0,0.8140919]
[1742064728260,0.18216865,84251.0,84250.0,0.8040919]
[1742064728564,0.18216865,84251.0,84250.0,0.8030919]
[1742064729154,0.18216865,84251.0,84250.0,0.8020919]
[1742064730075,0.18216865,84251.0,84250.0,0.25]
[1742064730257,0.1186919,84250.0,84249.0,4e-05]
[1742064730759,0.4323919,84250.0,84249.0,4e-05]
[1742064730965,0.1187046,84241.0,84240.0,0.3608]
[1742064731171,0.1187046,84241.0,84240.0,0.6108]
[1742064731466,0.1187046,84241.0,84240.0,0.729506]
[1742064731851,0.1824046,84241.0,84240.0,0.729506]
[1742064732853,0.1824046,84241.0,84240.0,0.762706]
[1742064733372,0.1824046,84241.0,84240.0,0.729506]
[1742064734268,0.1824046,84241.0,84240.0,0.792806]
[1742064743967,0.1824046,84241.0,84240.0,0.432006]
[1742064748979,0.1824046,84241.0,84240.0,0.3133]
[1742064749875,0.1824046,84241.0,84240.0,0.432006]
[1742064753975,0.1824046,84241.0,84240.0,0.3133]
[1742064754993,0.1824046,84241.0,84240.0,0.432006]
[1742064756377,0.1824046,84241.0,84240.0,0.3133]
[1742064756592,0.1824046,84241.0,84240.0,0.432006]
[1742064762682,0.1824046,84241.0,84240.0,0.3133]
[1742064763077,0.1824046,84241.0,84240.0,0.432006]
[1742064766895,0.1824046,84241.0,84240.0,0.3133]
[1742064767993,0.1824046,84241.0,84240.0,0.432006]
[1742064768895,0.1824046,84241.0,84240.0,0.182006]
[1742064781607,0.3608,84244.0,84242.0,0.1187018]
[1742064781804,0.5959018,84244.0,84243.0,0.2121018]
[1742064781993,0.4795018,84244.0,84243.0,0.4521018]
[1742064783399,0.5446018,84244.0,84243.0,0.4521018]
[1742064787203,0.1838018,84244.0,84243.0,0.4521018]
[1742064789110,0.1519018,84244.0,84243.0,0.4521018]
[1742064789408,0.36140001,84246.0,84245.0,0.118699]
[1742064789615,0.4794976,84246.0,84245.0,0.358699]
[1742064790809,0.4794976,84246.0,84245.0,0.423099]
[1742064791006,0.4794976,84246.0,84245.0,0.424099]
[1742064791007,0.5115976,84246.0,84245.0,0.424099]
[1742064791604,0.5115976,84246.0,84245.0,0.425099]
[1742064792805,0.4794976,84246.0,84245.0,0.425099]
[1742064793007,0.3608,84246.0,84245.0,0.424099]
[1742064793207,0.4794976,84246.0,84245.0,0.425099]
[1742064794210,0.5415976,84246.0,84245.0,0.425099]
[1742064796022,0.5415976,84246.0,84245.0,0.424099]
[1742064796916,0.5415976,84246.0,84245.0,0.423099]
[1742064798118,0.4794976,84246.0,84245.0,0.423099]
[1742064798330,0.1186976,84246.0,84245.0,0.423099]
[1742064799920,0.1819976,84246.0,84245.0,0.423099]
[1742064805425,0.0633,84246.0,84245.0,0.423099]
[1742064805617,0.0593475,84248.0,84247.0,0.1186962]
[1742064805827,0.0593475,84248.0,84247.0,0.3586962]
[1742064806226,0.0332,84248.0,84247.0,0.3586962]
[1742064807824,0.1504935,84249.0,84248.0,0.1186948]
[1742064808025,0.1504935,84249.0,84248.0,0.4416948]
[1742064808730,0.0318,84249.0,84248.0,0.4416948]
[1742064809429,0.1518924,84250.0,84248.0,0.4416948]
[1742064809430,0.1186924,84250.0,84249.0,0.1186933]
[1742064809628,0.1186924,84250.0,84249.0,0.4120933]
[1742064810729,0.0624,84250.0,84249.0,0.4120933]
[1742064811540,0.1810919,84250.0,84249.0,0.4120933]
[1742064811740,0.1810919,84250.0,84249.0,0.42382528]
[1742064856662,0.1810919,84250.0,84249.0,0.2934]
[1742064856865,0.22391667,84250.0,84249.0,0.2934]
[1742064857057,0.22391667,84250.0,84249.0,0.23]
[1742064857272,0.2120919,84250.0,84249.0,0.23]
[1742064857451,0.2120919,84250.0,84249.0,0.4130933]
[1742064857650,0.3283319,84250.0,84249.0,0.4130933]
[1742064858961,0.22407882,84250.0,84249.0,0.2944]
[1742064859162,0.34031882,84250.0,84249.0,0.2944]
[1742064859358,0.22407882,84250.0,84249.0,0.23]
[1742064859563,0.34031882,84250.0,84249.0,0.23]
[1742064859966,0.22407882,84250.0,84249.0,0.23]
[1742064860160,0.34031882,84250.0,84249.0,0.23]
[1742064860362,0.34031882,84250.0,84249.0,0.262]
[1742064861461,0.70111882,84250.0,84249.0,0.262]
[1742064862063,0.6891319,84250.0,84249.0,0.3806933]
[1742064862265,0.3283319,84250.0,84249.0,0.3806933]
[1742064864269,0.3283319,84250.0,84249.0,0.4136933]
[1742064865169,0.2973319,84250.0,84249.0,0.4136933]
[1742064865568,0.1186919,84250.0,84249.0,0.4136933]
[1742064868062,0.1499919,84250.0,84249.0,0.4136933]
[1742064870861,0.1186919,84250.0,84249.0,0.4136933]
[1742064871256,0.1186919,84250.0,84249.0,0.4436933]
[1742064871460,0.00017815,84251.0,84250.0,0.1186919]
[1742064871668,0.11886865,84251.0,84250.0,0.4910919]
[1742064871865,0.00017815,84251.0,84250.0,0.4910919]
[1742064872370,0.11886865,84251.0,84250.0,0.4910919]
[1742064872779,0.00017815,84251.0,84250.0,0.7210919]
[1742064873978,0.00017815,84251.0,84250.0,0.7310919]
[1742064874776,0.3608,84258.0,84257.0,0.1186821]
[1742064874975,0.4794807,84258.0,84257.0,0.6486821]
[1742064875280,0.4794807,84258.0,84257.0,0.6786821]
[1742064875478,0.4794807,84258.0,84257.0,0.6886821]
[1742064875677,0.4794807,84258.0,84257.0,0.7212821]
[1742064876271,0.4794807,84258.0,84257.0,0.73317091]
[1742064876478,0.4794807,84258.0,84257.0,0.45317091]
[1742064876873,0.5416807,84258.0,84257.0,0.45317091]
[1742064877582,0.5416807,84258.0,84257.0,0.3226]
[1742064877876,0.5416807,84258.0,84257.0,0.4412821]
[1742064881273,0.1808807,84258.0,84257.0,0.4412821]
[1742064882280,0.1808807,84258.0,84257.0,0.3226]
[1742064882483,0.1808807,84258.0,84257.0,0.26]
[1742064883369,0.1808807,84258.0,84257.0,0.3786821]
[1742064883569,0.2970807,84258.0,84257.0,0.4098821]
[1742064884881,0.2970807,84258.0,84257.0,0.26]
[1742064885076,0.1186891,84252.0,84245.0,0.0627]
[1742064885291,0.1186976,84246.0,84245.0,0.23]
[1742064885574,0.2348976,84246.0,84245.0,0.348699]
[1742064886384,0.2348976,84246.0,84245.0,0.231]
[1742064886684,0.2348976,84246.0,84245.0,0.2952]
[1742064886884,0.2348976,84246.0,84245.0,0.2962]
[1742064887079,0.3006976,84246.0,84245.0,0.2962]
[1742064887291,0.3006976,84246.0,84245.0,0.414899]
[1742064887685,0.3006976,84246.0,84245.0,0.2962]
[1742064887989,0.3006976,84246.0,84245.0,0.413899]
[1742064892478,0.3006976,84246.0,84245.0,0.231]
[1742064894488,0.3006976,84246.0,84245.0,0.349699]
[1742064894678,0.3006976,84246.0,84245.0,0.412099]
[1742064899790,0.3006976,84246.0,84245.0,0.2934]
[1742064900295,0.3006976,84246.0,84245.0,0.412099]
[1742064900879,0.3006976,84246.0,84245.0,0.2934]
[1742064901084,0.3006976,84246.0,84245.0,0.412099]
[1742064905683,0.1844976,84246.0,84245.0,0.412099]
[1742064905883,0.3006576,84246.0,84245.0,0.412099]
[1742064911697,0.1844976,84246.0,84245.0,0.412099]
[1742064911897,0.3006576,84246.0,84245.0,0.412099]
[1742064913102,0.1844976,84246.0,84245.0,0.412099]
[1742064913286,0.3006576,84246.0,84245.0,0.412099]
[1742064914701,0.1186976,84246.0,84245.0,0.412099]
[1742064915304,0.059348,84248.0,84245.0,1.0014478]
[1742064915596,0.1780442,84248.0,84247.0,0.1186962]
[1742064915793,0.1780442,84248.0,84247.0,0.6086962]
[1742064915999,0.1780442,84248.0,84247.0,0.4240962]
[1742064916994,0.2412442,84248.0,84247.0,0.4240962]
[1742064917595,0.1780442,84248.0,84247.0,0.4240962]
[1742064918491,0.0593463,84250.0,84249.0,0.1186933]
[1742064918693,0.0593463,84250.0,84249.0,0.4086933]
[1742064919502,0.0593463,84250.0,84249.0,0.434036]
[1742064920695,0.1206463,84250.0,84249.0,0.496836]
[1742064924894,0.1206463,84250.0,84249.0,0.50847657]
[1742064925205,0.1206463,84250.0,84249.0,0.51147657]
[1742064925801,0.1206463,84250.0,84249.0,0.51047657]
[1742064926909,0.0593433,84254.0,84249.0,0.48012927]
[1742064927214,0.0611,84255.0,84254.0,0.1186863]
[1742064927215,0.1797849,84255.0,84254.0,0.1186863]
[1742064927506,0.1797849,84255.0,84254.0,0.394029]
[1742064928104,0.1797849,84255.0,84254.0,0.458529]
[1742064930007,0.1797849,84255.0,84254.0,0.459529]
[1742064932406,0.1797849,84255.0,84254.0,0.458529]
[1742064932616,0.1797849,84255.0,84254.0,0.459529]
[1742064941808,0.0611,84255.0,84254.0,0.459529]
[1742064942113,0.0593387,84261.0,84257.0,0.0593407]
[1742064942312,0.1780194,84261.0,84260.0,0.1186779]
[1742064942498,0.1780194,84261.0,84260.0,0.1540206]
[1742064943506,0.2404194,84261.0,84260.0,0.2199206]
[1742064945203,0.2404194,84261.0,84260.0,0.23163933]
[1742064945412,0.0624,84261.0,84260.0,0.23163933]
[1742064945815,0.1810764,84261.0,84260.0,0.23163933]
[1742064967209,0.1810764,84261.0,84260.0,0.2199206]
[1742064967414,0.1810764,84261.0,84260.0,0.1540206]
[1742064969022,0.1810764,84261.0,84260.0,0.1855206]
[1742064969326,0.1810764,84261.0,84260.0,0.2163206]
[1742064969531,0.1810764,84261.0,84260.0,0.1855206]
[1742064970038,0.1810764,84261.0,84260.0,0.2184206]
[1742064973330,0.1810764,84261.0,84260.0,0.1855206]
[1742064973632,0.1810764,84261.0,84260.0,0.1540206]
[1742064974038,0.1810764,84261.0,84260.0,0.1864206]
[1742065007950,0.1810764,84261.0,84260.0,0.1764206]
[1742065008353,0.1810764,84261.0,84260.0,0.1964206]
[1742065011760,0.1810764,84261.0,84260.0,0.1864206]
[1742065015354,0.1810764,84261.0,84260.0,0.2179206]
[1742065019163,0.1810764,84261.0,84260.0,0.0353427]
[1742065019471,0.1810764,84261.0,84260.0,0.0253427]
[1742065019665,0.4069964,84261.0,84260.0,0.0253427]
[1742065020370,0.2910764,84261.0,84260.0,0.0253427]
[1742065020556,0.4069964,84261.0,84260.0,0.0253427]
[1742065020869,0.4069964,84261.0,84260.0,0.0909427]
[1742065023565,0.6577964,84261.0,84260.0,0.0909427]
[1742065025653,0.2969964,84261.0,84260.0,0.0909427]
[1742065025961,0.6577964,84261.0,84260.0,0.0909427]
[1742065026666,0.6577964,84261.0,84260.0,0.2096206]
[1742065026850,0.6577964,84261.0,84260.0,0.0909427]
[1742065028550,0.6577964,84261.0,84260.0,0.0585427]
[1742065028760,0.6577964,84261.0,84252.0,0.00017804]
[1742065028761,0.1186877,84253.0,84252.0,0.00017804]
[1742065029060,0.1186877,84253.0,84242.0,0.0593515]
[1742065029061,0.118699,84245.0,84244.0,0.0324]
[1742065029259,0.234579,84245.0,84244.0,0.1937004]
[1742065029963,0.299779,84245.0,84244.0,0.1937004]
[1742065030970,0.299779,84245.0,84244.0,0.1987004]
[1742065033569,0.3115741,84245.0,84244.0,0.1987004]
[1742065034572,0.1956941,84245.0,84244.0,0.1987004]
[1742065035074,0.3115741,84245.0,84244.0,0.1987004]
[1742065036155,0.1956941,84245.0,84244.0,0.1987004]
[1742065036360,0.3115741,84245.0,84244.0,0.1987004]
[1742065036575,0.3115741,84245.0,84244.0,0.1957004]
[1742065037075,0.3115741,84245.0,84244.0,0.1937004]
[1742065037278,0.1956941,84245.0,84244.0,0.1937004]
[1742065037460,0.3115741,84245.0,84244.0,0.1937004]
[1742065037770,0.1956941,84245.0,84244.0,0.1937004]
[1742065037969,0.3115741,84245.0,84244.0,0.1937004]
[1742065038566,0.3115741,84245.0,84244.0,0.075]
[1742065039575,0.3115741,84245.0,84244.0,0.065]